bitfinex-derivatives/quotes_SOLF0:USTF0_20250404
["timestamp","ask_amount","ask_price","bid_price","bid_amount"]
[1743751894898,0.05748218,117.32,117.3,8.5274]
[1743751895703,0.05748218,117.32,117.29,0.06263013]
[1743751896299,8.58358218,117.32,117.29,8.59023013]
[1743751898395,8.5269,117.31,117.29,0.06263013]
[1743751900703,0.05748218,117.32,117.29,0.06263013]
[1743751901004,15.09595881,117.32,117.29,0.06263013]
[1743751901506,15.09595881,117.32,117.26,8.5297]
[1743751901507,15.03847663,117.3,117.23,15.03847663]
[1743751901801,8.5304,117.26,117.24,8.5314]
[1743751902196,8.5304,117.26,117.21,46.45847663]
[1743751902501,8.5311,117.25,117.23,8.5322]
[1743751902902,0.06060659,117.26,117.22,8.533]
[1743751902903,8.5319,117.24,117.22,8.533]
[1743751903297,31.48060659,117.26,117.19,48.67007663]
[1743751903498,8.5314,117.25,117.23,8.5323]
[1743751903698,0.06022749,117.24,117.23,8.5323]
[1743751905907,0.06022749,117.24,117.23,23.57077663]
[1743751906107,501.6431,117.29,117.23,15.03847663]
[1743751907208,0.05773763,117.27,117.25,8.58991381]
[1743751907508,0.05773763,117.27,117.25,0.05911381]
[1743751908106,0.05773763,117.27,117.25,8.59021381]
[1743751908307,0.05773763,117.27,117.25,0.05911381]
[1743751909000,8.5304,117.26,117.25,0.05911381]
[1743751913021,40.00783763,117.27,117.25,0.05911381]
[1743751913217,31.47773763,117.27,117.25,0.05911381]
[1743751914720,8.5304,117.26,117.25,0.05911381]
[1743751915219,31.47773763,117.27,117.25,0.05911381]
[1743751915514,40.00803763,117.27,117.25,0.05911381]
[1743751915723,31.47773763,117.27,117.25,0.05911381]
[1743751917921,40.00773763,117.27,117.25,0.05911381]
[1743751918125,31.47773763,117.27,117.25,0.05911381]
[1743751918519,40.00793763,117.27,117.25,0.05911381]
[1743751919825,8.5304,117.26,117.25,0.05911381]
[1743751920328,31.47773763,117.27,117.2,31.42]
[1743751920528,2.2242,117.26,117.19,46.45847663]
[1743751920925,8.5316,117.25,117.22,8.533]
[1743751921532,8.532,117.24,117.22,8.55323016]
[1743751921832,8.532,117.24,117.22,0.02023016]
[1743751922032,8.5319,117.24,117.22,0.02023016]
[1743751922331,0.06011633,117.25,117.22,0.02023016]
[1743751922633,8.5326,117.23,117.22,0.02023016]
[1743751924833,33.5671,117.24,117.22,0.02023016]
[1743751925333,42.0993,117.24,117.22,0.02023016]
[1743751925931,8.5326,117.23,117.22,0.02023016]
[1743751927431,33.5671,117.24,117.22,0.02023016]
[1743751928336,8.5326,117.23,117.22,0.02023016]
[1743751930337,48.60557663,117.24,117.15,15.03847663]
[1743751930529,2.2718,117.22,117.15,15.03847663]
[1743751930734,33.6038,117.21,117.15,15.03847663]
[1743751930931,8.5359,117.19,117.15,15.03847663]
[1743751931129,33.6038,117.21,117.15,15.03847663]
[1743751931335,0.0638445,117.19,117.17,8.5366]
[1743751931637,0.0638445,117.19,117.15,15.03847663]
[1743751931840,8.5996445,117.19,117.16,8.5374]
[1743751933039,0.0638445,117.19,117.17,8.5368]
[1743751933536,8.5993445,117.19,117.16,8.5372]
[1743751935043,0.0638445,117.19,117.14,15.03847663]
[1743751935337,31.42,117.2,117.14,15.03847663]
[1743751935534,0.0621181,117.18,117.14,15.03847663]
[1743751935735,0.0621181,117.18,117.15,8.5383]
[1743751936539,0.0621181,117.18,117.16,8.5377]
[1743751936839,0.0621181,117.18,117.14,15.03847663]
[1743751937233,31.44,117.17,117.12,15.03847663]
[1743751937638,31.44,117.17,117.13,8.5395]
[1743751937937,31.44,117.17,117.12,15.03847663]
[1743751938340,0.0621181,117.18,117.14,15.03847663]
[1743751938641,0.0621181,117.18,117.13,15.03847663]
[1743751938844,0.0621181,117.18,117.15,8.5381]
[1743751939139,0.0621181,117.18,117.13,15.03847663]
[1743751939534,0.0621181,117.18,117.15,8.5379]
[1743751939735,0.0621181,117.18,117.13,15.03847663]
[1743751940032,0.0621181,117.18,117.16,8.5374]
[1743751940340,0.0621181,117.18,117.13,15.03847663]
[1743751941441,0.0621181,117.18,117.17,8.5369]
[1743751941642,0.0621181,117.18,117.17,18.19977103]
[1743751943636,0.0621181,117.18,117.17,8.5369]
[1743751947946,0.0621181,117.18,117.17,23.63489663]
[1743751953255,8.794e-05,117.18,117.17,23.63489663]
[1743751957656,8.794e-05,117.18,117.17,8.5369]
[1743751957864,8.794e-05,117.18,117.16,0.06203017]
[1743751958261,31.44,117.17,117.16,0.06203017]
[1743751959660,8.794e-05,117.18,117.16,0.06203017]
[1743751960257,8.794e-05,117.18,117.17,8.5369]
[1743751962659,8.794e-05,117.18,117.16,8.59933017]
[1743751963062,8.794e-05,117.18,117.16,0.06203017]
[1743751963964,8.794e-05,117.18,117.16,8.59923017]
[1743751965763,8.794e-05,117.18,117.16,18.26371287]
[1743751967262,8.794e-05,117.18,117.17,18.2013827]
[1743751968764,8.794e-05,117.18,117.17,9.6644827]
[1743751969768,8.794e-05,117.18,117.17,18.2013827]
[1743751971565,8.794e-05,117.18,117.17,8.5369]
[1743751973368,8.794e-05,117.18,117.17,18.2013827]
[1743751977370,491.3,117.22,117.17,9.6644827]
[1743751977575,491.3,117.22,117.18,9.6644827]
[1743751977971,8.5343,117.21,117.18,18.2002827]
[1743751978173,491.3,117.22,117.18,18.2002827]
[1743751978374,491.3,117.22,117.18,9.6644827]
[1743751978573,0.06142505,117.21,117.19,8.59721811]
[1743751979873,8.59552505,117.21,117.19,0.06211811]
[1743751980176,0.06142505,117.21,117.19,0.06211811]
[1743751980675,0.06142505,117.21,117.19,9.72660081]
[1743751980875,0.06142505,117.21,117.2,8.5348]
[1743751981779,0.06142505,117.21,117.19,0.06211811]
[1743751983073,8.59572505,117.21,117.19,0.06211811]
[1743751983277,0.06142505,117.21,117.19,9.72660081]
[1743751983779,0.06142505,117.21,117.2,8.5348]
[1743751984682,0.06142505,117.21,117.2,18.1992827]
[1743751986582,0.06142505,117.21,117.2,8.5348]
[1743751986781,0.06142505,117.21,117.19,0.06211811]
[1743751986977,31.48142505,117.21,117.19,0.06211811]
[1743751987882,40.01572505,117.21,117.19,0.06211811]
[1743751988277,31.48142505,117.21,117.19,0.06211811]
[1743751988983,31.48142505,117.21,117.19,8.59731811]
[1743751989485,40.01552505,117.21,117.19,0.06211811]
[1743751990185,31.48142505,117.21,117.19,8.59761811]
[1743751990689,31.48142505,117.21,117.19,0.06211811]
[1743751991284,31.48142505,117.21,117.19,9.72660081]
[1743751991587,0.06142505,117.21,117.19,9.72660081]
[1743751991789,0.06142505,117.21,117.2,9.6644827]
[1743751992289,0.06142505,117.21,117.2,18.1992827]
[1743751992489,0.06142505,117.21,117.2,9.6644827]
[1743751993994,0.06142505,117.21,117.19,9.72660081]
[1743751994194,8.59542505,117.21,117.19,9.72660081]
[1743751994795,0.06142505,117.21,117.19,9.72660081]
[1743751995690,0.06142505,117.21,117.19,18.26200081]
[1743751995994,0.06142505,117.21,117.19,0.06211811]
[1743751995995,8.59552505,117.21,117.19,0.06211811]
[1743751996395,0.06142505,117.21,117.19,0.06211811]
[1743751996596,8.59552505,117.21,117.19,0.06211811]
[1743751996799,0.06142505,117.21,117.19,0.06211811]
[1743751996995,8.59602505,117.21,117.19,0.06211811]
[1743751997593,0.06142505,117.21,117.19,0.06211811]
[1743751998293,8.59562505,117.21,117.19,0.06211811]
[1743751998593,0.06142505,117.21,117.19,9.72660081]
[1743751999200,0.06142505,117.21,117.2,8.5348]
[1743752002603,0.06142505,117.21,117.19,18.26170081]
[1743752002802,0.06142505,117.21,117.2,9.6644827]
[1743752003103,0.06142505,117.21,117.2,18.1992827]
[1743752005204,2.1391,117.25,117.23,8.5322]
[1743752005400,2.1391,117.25,117.23,18.1966827]
[1743752006002,10.7603,117.26,117.23,18.1966827]
[1743752006296,10.81792052,117.26,117.23,18.25198117]
[1743752007604,2.28712052,117.26,117.23,18.25198117]
[1743752007803,2.28712052,117.26,117.24,8.5318]
[1743752008004,0.05762052,117.26,117.25,9.6644827]
[1743752008303,0.05762052,117.26,117.25,18.1955827]
[1743752008603,0.05762052,117.26,117.25,9.6644827]
[1743752009704,0.05762052,117.26,117.24,18.1958827]
[1743752009905,0.05762052,117.26,117.23,0.05529847]
[1743752010099,9.72210322,117.26,117.23,0.05529847]
[1743752010701,12.03700322,117.26,117.23,0.05529847]
[1743752010898,9.6644827,117.25,117.23,0.05529847]
[1743752011103,8.5319,117.24,117.23,0.05529847]
[1743752011404,12.0165827,117.25,117.23,0.05529847]
[1743752012506,8.5319,117.24,117.23,0.05529847]
[1743752012907,18.1963827,117.24,117.23,0.05529847]
[1743752013206,8.533,117.23,117.2,9.6644827]
[1743752013705,8.533,117.23,117.2,18.1989827]
[1743752014205,0.0602771,117.23,117.2,18.26340911]
[1743752014405,0.0602771,117.23,117.2,9.72890911]
[1743752014609,8.5928771,117.23,117.2,9.72890911]
[1743752014802,8.5928771,117.23,117.2,18.26330911]
[1743752015004,0.0602771,117.23,117.21,9.6644827]
[1743752015911,8.5929771,117.23,117.21,9.6644827]
[1743752016099,0.0602771,117.23,117.21,9.6644827]
[1743752016408,8.5929771,117.23,117.21,9.6644827]
[1743752017709,0.0602771,117.23,117.21,9.6644827]
[1743752018710,8.5928771,117.23,117.21,9.6644827]
[1743752019309,0.0602771,117.23,117.21,9.6644827]
[1743752019710,0.0602771,117.23,117.21,18.1981827]
[1743752021112,0.0602771,117.23,117.22,8.5333]
[1743752021312,0.0602771,117.23,117.22,18.1977827]
[1743752023214,2.3333,117.28,117.25,8.5306]
[1743752023414,2.3333,117.28,117.25,9.6644827]
[1743752023613,10.8628,117.28,117.25,9.6644827]
[1743752024316,10.9181173,117.28,117.25,9.72704126]
[1743752024511,10.9181173,117.28,117.25,0.06255856]
[1743752025116,10.9181173,117.28,117.25,8.59345856]
[1743752025919,2.3886173,117.28,117.26,8.5304]
[1743752026216,2.3886173,117.28,117.25,0.06255856]
[1743752026518,10.9178173,117.28,117.25,8.59325856]
[1743752026817,2.3886173,117.28,117.25,8.59325856]
[1743752027010,2.3886173,117.28,117.26,8.5303]
[1743752027214,2.3886173,117.28,117.25,0.06255856]
[1743752027417,0.0553173,117.28,117.26,9.6644827]
[1743752027617,0.0553173,117.28,117.27,8.5297]
[1743752027918,0.0553173,117.28,117.26,9.6644827]
[1743752029716,0.0553173,117.28,117.27,8.5297]
[1743752030218,0.0553173,117.28,117.27,18.1941827]
[1743752032622,0.0553173,117.28,117.25,9.72704126]
[1743752033023,0.0553173,117.28,117.25,0.06255856]
[1743752033724,0.0553173,117.28,117.26,8.5301]
[1743752034627,0.0553173,117.28,117.25,18.25774126]
[1743752034926,8.5844173,117.28,117.25,18.25774126]
[1743752035325,0.0553173,117.28,117.26,8.5302]
[1743752037425,8.5842173,117.28,117.26,8.5302]
[1743752037825,8.5842173,117.28,117.25,18.25774126]
[1743752038025,0.0553173,117.28,117.25,9.72704126]
[1743752038526,0.0553173,117.28,117.25,18.25764126]
[1743752038728,8.5843173,117.28,117.25,18.25764126]
[1743752039524,0.0553173,117.28,117.25,18.25764126]
[1743752039926,8.5843173,117.28,117.25,18.25764126]
[1743752040530,0.0553173,117.28,117.26,8.5303]
[1743752041831,8.5843173,117.28,117.26,8.5303]
[1743752043126,0.0553173,117.28,117.27,8.5297]
[1743752043426,0.0553173,117.28,117.27,18.1941827]
[1743752044024,31.38,117.33,117.3,8.5271]
[1743752044223,31.38,117.33,117.3,18.1915827]
[1743752044931,31.38,117.33,117.28,9.6644827]
[1743752045131,0.05576735,117.32,117.29,9.72987247]
[1743752046032,0.05576735,117.32,117.29,18.25767247]
[1743752046532,0.05576735,117.32,117.3,8.5271]
[1743752046831,0.05576735,117.32,117.29,9.72987247]
[1743752047227,0.05576735,117.32,117.29,18.25737247]
[1743752047533,0.05576735,117.32,117.3,9.6644827]
[1743752047934,0.05576735,117.32,117.31,9.6644827]
[1743752048336,0.05576735,117.32,117.31,18.1912827]
[1743752049439,0.05576735,117.32,117.31,49.5712827]
[1743752050138,20.4669827,117.38,117.31,41.0444827]
[1743752050336,10.8025,117.38,117.34,9.6644827]
[1743752050839,2.2805,117.38,117.33,9.6644827]
[1743752051033,11.9449827,117.38,117.33,9.6644827]
[1743752051230,11.9449827,117.38,117.33,18.1893827]
[1743752051435,0.05862408,117.37,117.34,0.06353042]
[1743752052038,8.5231,117.36,117.34,0.06353042]
[1743752054040,8.58132408,117.37,117.34,0.06353042]
[1743752055639,8.5232,117.36,117.34,0.06353042]
[1743752056339,18.24590678,117.37,117.34,0.06353042]
[1743752057742,8.58142408,117.37,117.34,0.06353042]
[1743752059244,8.5235,117.36,117.34,0.06353042]
[1743752059944,9.6644827,117.35,117.31,9.6644827]
[1743752060145,43.3775827,117.36,117.31,9.6644827]
[1743752060334,9.6644827,117.34,117.29,9.6644827]
[1743752060853,8.5264,117.32,117.29,9.6644827]
[1743752061039,8.5264,117.32,117.3,0.06527054]
[1743752061241,41.07870885,117.33,117.3,0.06527054]
[1743752061441,31.41422615,117.33,117.3,0.06527054]
[1743752061846,9.6644827,117.32,117.3,0.06527054]
[1743752062037,11.9348827,117.32,117.3,0.06527054]
[1743752062236,8.5268,117.31,117.3,0.06527054]
[1743752062846,20.4612827,117.32,117.3,0.06527054]
[1743752063346,11.9348827,117.32,117.3,0.06527054]
[1743752063849,8.5268,117.31,117.3,0.06527054]
[1743752064237,31.41422615,117.33,117.3,0.06527054]
[1743752064440,0.05422615,117.33,117.31,9.6644827]
[1743752064744,0.05422615,117.33,117.32,18.1904827]
[1743752064943,0.05422615,117.33,117.32,9.6644827]
[1743752065849,0.05422615,117.33,117.32,18.1904827]
[1743752067147,45.6567827,117.38,117.33,8.5248]
[1743752067343,35.9923,117.38,117.34,9.6644827]
[1743752067750,4.6323,117.38,117.35,9.6644827]
[1743752068249,4.6323,117.38,117.35,9.7187757]
[1743752068250,13.21083193,117.38,117.35,9.7187757]
[1743752068746,13.21083193,117.38,117.35,18.2424757]
[1743752070152,13.21083193,117.38,117.35,9.7187757]
[1743752070445,0.05633193,117.38,117.37,9.6644827]
[1743752070641,35.7932,117.43,117.37,9.6644827]
[1743752070838,4.4332,117.43,117.4,9.6644827]
[1743752071242,2.2861,117.43,117.41,9.6644827]
[1743752071442,33.5071,117.46,117.42,9.6644827]
[1743752071750,35.7932,117.46,117.43,9.6644827]
[1743752071951,0.05747136,117.45,117.43,9.71986026]
[1743752072153,0.05747136,117.45,117.43,0.05537756]
[1743752072449,8.57407136,117.45,117.43,0.05537756]
[1743752072651,0.05747136,117.45,117.43,0.05537756]
[1743752072845,9.72195406,117.45,117.43,0.05537756]
[1743752073042,8.5173,117.44,117.43,0.05537756]
[1743752073349,41.06195406,117.45,117.4,9.6644827]
[1743752073550,8.5184,117.43,117.4,9.6644827]
[1743752073741,31.39747136,117.45,117.38,15.03815464]
[1743752074053,8.5191,117.42,117.38,15.03815464]
[1743752074249,2.3605,117.44,117.38,15.03815464]
[1743752074455,0.06067944,117.41,117.39,0.06421346]
[1743752074649,0.06067944,117.41,117.39,8.58481346]
[1743752075652,0.00067944,117.41,117.39,8.58481346]
[1743752076754,0.00067944,117.41,117.4,8.5202]
[1743752077052,0.00067944,117.41,117.39,0.06421346]
[1743752077252,0.00067944,117.41,117.39,8.58481346]
[1743752077549,0.00067944,117.41,117.4,15.03815464]
[1743752077750,0.00067944,117.41,117.4,23.55835464]
[1743752078249,0.00067944,117.41,117.4,15.03815464]
[1743752078953,0.00067944,117.41,117.4,23.55835464]
[1743752079456,0.00067944,117.41,117.4,23.49835464]
[1743752079655,0.00067944,117.41,117.4,54.83835464]
[1743752081055,12.9495,117.46,117.4,46.31815464]
[1743752081256,2.2861,117.46,117.42,15.03815464]
[1743752081557,2.2861,117.46,117.43,8.5177]
[1743752082257,2.34148886,117.46,117.43,0.0548964]
[1743752083546,0.05538886,117.46,117.43,31.3748964]
[1743752083746,0.05538886,117.46,117.44,8.517]
[1743752084261,0.05538886,117.46,117.44,15.03815464]
[1743752084452,0.05538886,117.46,117.45,8.5166]
[1743752084956,0.05538886,117.46,117.44,23.55515464]
[1743752085155,0.05538886,117.46,117.43,31.3748964]
[1743752085456,0.05538886,117.46,117.44,8.517]
[1743752085855,0.05538886,117.46,117.43,31.3748964]
[1743752086352,0.05538886,117.46,117.45,15.03815464]
[1743752086553,0.05538886,117.46,117.45,23.55475464]
[1743752087959,0.05538886,117.46,117.43,46.41305104]
[1743752088557,0.05538886,117.46,117.44,8.517]
[1743752089959,0.05538886,117.46,117.45,8.5166]
[1743752090749,0.05538886,117.46,117.45,23.55475464]
[1743752091357,2.2211,117.51,117.48,8.514]
[1743752091557,31.32,117.54,117.47,46.35815464]
[1743752091755,8.5111,117.53,117.49,8.5134]
[1743752092051,8.5111,117.53,117.47,46.35815464]
[1743752092052,33.6307,117.54,117.47,46.35815464]
[1743752092256,8.5122,117.52,117.48,8.514]
[1743752092559,0.05635303,117.52,117.49,0.0560448]
[1743752092752,8.5126,117.51,117.49,0.0560448]
[1743752093154,0.05635303,117.52,117.49,0.0560448]
[1743752093659,0.05635303,117.52,117.45,31.3]
[1743752093854,31.3,117.51,117.45,31.3]
[1743752094055,8.5143,117.49,117.46,8.5156]
[1743752094561,8.5145,117.48,117.46,8.5156]
[1743752095062,8.5145,117.48,117.46,8.57751564]
[1743752095457,0.05722359,117.49,117.46,8.57751564]
[1743752095961,8.57142359,117.49,117.46,8.57751564]
[1743752096261,0.05722359,117.49,117.46,0.06191564]
[1743752096456,31.3,117.48,117.46,0.06191564]
[1743752096756,31.3,117.48,117.42,15.03815464]
[1743752096957,8.5155,117.47,117.42,15.03815464]
[1743752097356,8.5155,117.47,117.44,8.517]
[1743752097762,8.56969403,117.47,117.44,8.5714089]
[1743752098065,0.05419403,117.47,117.45,8.5161]
[1743752098259,0.05419403,117.47,117.44,15.09256354]
[1743752098763,0.05419403,117.47,117.45,8.5161]
[1743752099163,8.56949403,117.47,117.44,23.60946354]
[1743752099556,0.05419403,117.47,117.44,0.0544089]
[1743752099757,8.5162,117.46,117.44,0.0544089]
[1743752100267,31.35419403,117.47,117.44,0.0544089]
[1743752100566,39.86979403,117.47,117.44,0.0544089]
[1743752100765,31.35419403,117.47,117.44,0.0544089]
[1743752100968,8.5166,117.45,117.44,0.0544089]
[1743752101667,10.7971,117.46,117.44,0.0544089]
[1743752102466,2.2808,117.46,117.4,15.03815464]
[1743752102668,2.1408,117.45,117.38,15.03815464]
[1743752102868,31.3,117.44,117.38,15.03815464]
[1743752103464,8.5187,117.43,117.39,8.5205]
[1743752103665,0.05962655,117.42,117.4,0.05686422]
[1743752104165,0.05962655,117.42,117.4,8.57706422]
[1743752104569,0.05962655,117.42,117.4,0.05686422]
[1743752105466,8.57852655,117.42,117.4,0.05686422]
[1743752106572,8.5195,117.41,117.4,0.05686422]
[1743752106771,31.3,117.41,117.36,15.03815464]
[1743752107466,8.5207,117.4,117.36,23.56085464]
[1743752107662,8.5207,117.4,117.36,15.03815464]
[1743752107870,8.5207,117.4,117.37,8.5224]
[1743752108070,8.58655472,117.39,117.37,0.0601332]
[1743752108472,0.06555472,117.39,117.37,0.0601332]
[1743752109067,0.06555472,117.39,117.38,8.5217]
[1743752109469,0.06555472,117.39,117.37,0.0601332]
[1743752109672,0.06555472,117.39,117.37,8.5821332]
[1743752110374,0.06555472,117.39,117.38,23.55985464]
[1743752112475,2.1367,117.43,117.38,15.03815464]
[1743752112879,10.6551,117.43,117.39,8.5204]
[1743752113274,2.1367,117.43,117.38,15.03815464]
[1743752113472,2.1367,117.43,117.4,8.5199]
[1743752113672,0.05876969,117.42,117.4,8.5199]
[1743752114277,0.05876969,117.42,117.39,8.57861472]
[1743752114877,0.05876969,117.42,117.4,8.5201]
[1743752115782,0.05876969,117.42,117.41,8.5195]
[1743752117281,2.2808,117.46,117.44,8.5171]
[1743752117580,33.6008,117.46,117.44,8.5171]
[1743752117779,2.3631,117.47,117.45,8.5163]
[1743752117984,4.3873,117.5,117.46,15.03815464]
[1743752118482,0.05939021,117.49,117.48,8.5141]
[1743752119484,0.05939021,117.49,117.48,23.55225464]
[1743752121282,0.05939021,117.49,117.47,8.57643135]
[1743752121479,0.05939021,117.49,117.47,0.06163135]
[1743752122283,8.57319021,117.49,117.47,0.06163135]
[1743752122483,46.39754485,117.49,117.41,15.03815464]
[1743752122684,2.2933,117.48,117.41,15.03815464]
[1743752122878,8.5162,117.46,117.41,15.03815464]
[1743752123078,39.8162,117.46,117.41,15.03815464]
[1743752123583,0.0537961,117.45,117.42,8.57635184]
[1743752123783,0.0537961,117.45,117.42,0.05825184]
[1743752123979,0.0537961,117.45,117.43,8.5177]
[1743752124980,0.0537961,117.45,117.42,8.57655184]
[1743752125180,0.0537961,117.45,117.42,0.05825184]
[1743752125583,8.5703961,117.45,117.42,0.05825184]
[1743752126180,0.0537961,117.45,117.43,8.5178]
[1743752126386,0.0537961,117.45,117.42,0.05825184]
[1743752126687,0.0537961,117.45,117.44,8.5173]
[1743752126985,0.0537961,117.45,117.42,0.05825184]
[1743752127186,0.0537961,117.45,117.43,8.5175]
[1743752127387,0.0537961,117.45,117.42,0.05825184]
[1743752127688,0.0537961,117.45,117.43,15.03815464]
[1743752127882,0.0537961,117.45,117.44,8.5173]
[1743752132693,39.8127,117.51,117.47,8.5145]
[1743752132993,31.3,117.51,117.47,8.5145]
[1743752133894,0.05434468,117.5,117.48,0.06212671]
[1743752135495,0.05434468,117.5,117.45,15.03815464]
[1743752135892,0.05434468,117.5,117.44,31.3]
[1743752136499,8.514,117.49,117.46,8.5154]
[1743752136699,31.3,117.49,117.46,0.05932329]
[1743752137102,8.515,117.48,117.46,0.05932329]
[1743752137903,8.5151,117.47,117.46,0.05932329]
[1743752138200,31.3,117.49,117.46,0.05932329]
[1743752138395,31.3,117.49,117.47,8.5151]
[1743752138593,31.3,117.49,117.46,0.05932329]
[1743752138997,39.8143,117.49,117.46,8.57492329]
[1743752139400,39.8143,117.49,117.46,0.05932329]
[1743752139600,8.5148,117.48,117.46,0.05932329]
[1743752139797,31.3,117.49,117.46,0.05932329]
[1743752140298,0.05434468,117.5,117.46,0.05932329]
[1743752140698,8.56764468,117.5,117.47,8.5149]
[1743752140898,0.05434468,117.5,117.46,0.05932329]
[1743752141300,8.56744468,117.5,117.47,8.5147]
[1743752142000,0.05434468,117.5,117.48,8.514]
[1743752142202,0.05434468,117.5,117.46,0.05932329]
[1743752142402,0.05434468,117.5,117.48,8.5138]
[1743752142701,0.05434468,117.5,117.47,15.03815464]
[1743752142903,0.05434468,117.5,117.49,8.5137]
[1743752143300,0.05434468,117.5,117.47,15.03815464]
[1743752143601,0.05434468,117.5,117.48,8.5139]
[1743752144002,0.05434468,117.5,117.47,15.03815464]
[1743752144200,0.05434468,117.5,117.49,8.5137]
[1743752144598,0.05434468,117.5,117.48,8.514]
[1743752144797,0.05434468,117.5,117.47,15.03815464]
[1743752145302,0.05434468,117.5,117.49,8.5137]
[1743752149811,0.05434468,117.5,117.49,23.55185464]
[1743752150805,4.468e-05,117.5,117.49,23.55185464]
[1743752156415,4.468e-05,117.5,117.49,8.5137]
[1743752161016,4.468e-05,117.5,117.49,23.55185464]
[1743752162020,4.5002,117.56,117.49,15.03815464]
[1743752162214,4.5002,117.56,117.51,15.03815464]
[1743752162409,8.5094,117.55,117.51,15.03815464]
[1743752163111,8.5094,117.55,117.52,8.511]
[1743752163313,0.0569493,117.54,117.52,0.06443799]
[1743752163717,0.0569493,117.54,117.53,8.5106]
[1743752165318,0.0569493,117.54,117.53,39.7906]
[1743752165714,0.0569493,117.54,117.53,8.5106]
[1743752166721,0.0569493,117.54,117.52,8.57563799]
[1743752167318,8.5674493,117.54,117.52,0.06443799]
[1743752167518,0.0569493,117.54,117.52,0.06443799]
[1743752168115,0.0569493,117.54,117.53,8.5108]
[1743752171321,8.5673493,117.54,117.52,0.06443799]
[1743752171518,10.7956493,117.54,117.52,0.06443799]
[1743752172127,10.7956493,117.54,117.52,8.57553799]
[1743752172418,2.2852493,117.54,117.52,0.06443799]
[1743752172720,2.2852493,117.54,117.53,8.5108]
[1743752173020,0.0569493,117.54,117.53,8.5108]
[1743752173316,17.0071,117.64,117.53,15.03815464]
[1743752173317,2.2245,117.62,117.53,15.03815464]
[1743752173526,15.2787,117.62,117.55,15.03815464]
[1743752173719,15.2787,117.62,117.59,8.5058]
[1743752173917,43.06072848,117.65,117.59,15.03815464]
[1743752174123,51.56322848,117.65,117.59,15.03815464]
[1743752174323,43.06072848,117.65,117.59,15.03815464]
[1743752174524,0.05886431,117.63,117.61,0.05487393]
[1743752175118,8.56276431,117.63,117.61,0.05487393]
[1743752175323,2.34326431,117.63,117.61,0.05487393]
[1743752175829,2.34326431,117.63,117.61,8.55977393]
[1743752176029,2.34326431,117.63,117.61,0.05487393]
[1743752176232,0.05886431,117.63,117.61,0.05487393]
[1743752177625,0.05886431,117.63,117.61,8.55937393]
[1743752177829,0.05886431,117.63,117.61,15.09302857]
[1743752178630,0.05886431,117.63,117.61,0.05487393]
[1743752179438,0.05886431,117.63,117.61,8.55957393]
[1743752179736,0.05886431,117.63,117.61,0.05487393]
[1743752180236,8.56246431,117.63,117.61,0.05487393]
[1743752180942,8.5043,117.62,117.61,0.05487393]
[1743752181636,8.5058,117.6,117.57,23.54565464]
[1743752181936,8.5064,117.6,117.56,8.5086]
[1743752182134,2.2254,117.62,117.55,46.27815464]
[1743752182338,2.2254,117.62,117.57,15.03815464]
[1743752182733,0.05997628,117.61,117.58,0.06128085]
[1743752184641,2.35077628,117.61,117.58,0.06128085]
[1743752184937,8.5061,117.6,117.58,0.06128085]
[1743752185141,2.35077628,117.61,117.58,0.06128085]
[1743752185531,2.35077628,117.61,117.59,8.5063]
[1743752186030,10.85607628,117.61,117.58,8.56808085]
[1743752186236,2.35077628,117.61,117.58,0.06128085]
[1743752187042,0.05997628,117.61,117.59,8.5061]
[1743752187436,0.05997628,117.61,117.58,8.56808085]
[1743752187737,0.05997628,117.61,117.58,0.06128085]
[1743752187934,0.05997628,117.61,117.59,8.5063]
[1743752189344,8.56507628,117.61,117.59,8.5063]
[1743752189936,0.05997628,117.61,117.59,8.5063]
[1743752190247,0.05997628,117.61,117.58,8.56798085]
[1743752190541,0.05997628,117.61,117.58,0.06128085]
[1743752190844,0.05997628,117.61,117.59,8.506]
[1743752191645,31.29997628,117.61,117.52,15.03815464]
[1743752191845,17.19985464,117.6,117.52,15.03815464]
[1743752192047,8.5075,117.58,117.56,8.5084]
[1743752192247,8.5075,117.58,117.52,15.03815464]
[1743752192735,8.5075,117.58,117.55,8.5087]
[1743752192937,0.05876738,117.56,117.54,15.09317318]
[1743752193139,0.05876738,117.56,117.55,8.5094]
[1743752193944,2.1617,117.6,117.58,8.5068]
[1743752194145,2.1617,117.6,117.54,46.27815464]
[1743752194342,2.1617,117.6,117.57,8.5075]
[1743752194548,2.1617,117.6,117.54,46.27815464]
[1743752194949,2.2793,117.63,117.58,15.03815464]
[1743752195245,0.05693329,117.62,117.6,15.03815464]
[1743752195445,0.05693329,117.62,117.61,8.5046]
[1743752195648,8.5024,117.65,117.6,15.03815464]
[1743752195845,0.05463551,117.63,117.6,15.03815464]
[1743752196039,0.05463551,117.63,117.6,15.100028]